fUST/lending_fUST_20240918
["ID","MTS","AMOUNT","RATE_DAILY","PERIOD"]
[338449512,1726644644785,-500.0,0.00021369,2]
[338449513,1726644644795,-1307.61,0.00021369,2]
[338449514,1726644644806,-838.57,0.00021369,2]
[338449515,1726644644815,-208.40290726,0.00021369,2]
[338449516,1726644644827,-518.31,0.00021369,2]
[338449517,1726644644838,-500.0,0.00021369,2]
[338449518,1726644644848,-2256.24,0.00021369,2]
[338449519,1726644644859,-891.01,0.00021369,2]
[338449520,1726644644871,-500.0,0.00021369,2]
[338449521,1726644644881,-168.53035517,0.00021369,2]
[338449522,1726644644892,-671.86,0.00021369,2]
[338449523,1726644644904,-151.0,0.00021369,2]
[338449524,1726644644915,-151.0,0.00021369,2]
[338449525,1726644644926,-151.0,0.00021369,2]
[338449526,1726644644936,-1200.85,0.000214,2]
[338449527,1726644644945,-1000.0,0.00021409,2]
[338449528,1726644644955,-1000.0,0.00021409,2]
[338449529,1726644644965,-538.72167419,0.00021409,2]
[338449530,1726644644974,-1000.0,0.00021409,2]
[338449531,1726644644984,-501.02580175,0.00021409,2]
[338449532,1726644644994,-500.99242898,0.00021409,2]
[338449533,1726644645004,-500.78291911,0.00021485,2]
[338449534,1726644645015,-217.3318809,0.00021485,2]
[338449535,1726644645025,-501.0,0.000215,2]
[338449536,1726644645035,-1000.0,0.0002157,2]
[338449537,1726644645045,-1000.0,0.0002157,2]
[338449538,1726644645055,-1220.18592794,0.0002158,2]
[338449539,1726644645064,-500.0,0.00021643,2]
[338449540,1726644645074,-1307.61,0.00021643,2]
[338449541,1726644645083,-838.57,0.00021643,2]
[338449542,1726644645093,-518.31,0.00021643,2]
[338449543,1726644645104,-500.0,0.00021643,2]
[338449544,1726644645114,-2256.24,0.00021643,2]
[338449545,1726644645124,-891.01,0.00021643,2]
[338449546,1726644645134,-500.0,0.00021643,2]
[338449547,1726644645145,-671.86,0.00021643,2]
[338449548,1726644645157,-277.363101,0.00021643,2]
[338449549,1726644645169,-277.363101,0.00021643,2]
[338449550,1726644645178,-205.875145,0.00021643,2]
[338449551,1726644645187,-205.875145,0.00021643,2]
[338449552,1726644645197,-151.0,0.00021643,2]
[338449553,1726644645206,-151.0,0.00021643,2]
[338449554,1726644645216,-151.0,0.00021643,2]
[338449555,1726644645226,-151.0,0.00021643,2]
[338449556,1726644645236,-151.0,0.00021643,2]
[338449557,1726644645246,-151.0,0.00021643,2]
[338449558,1726644645255,-151.0,0.00021643,2]
[338449559,1726644645265,-151.0,0.00021643,2]
[338449560,1726644645275,-151.0,0.00021643,2]
[338449561,1726644645284,-4030.85,0.000217,2]
[338449562,1726644645295,-43815.02,0.000217,2]
[338449563,1726644645304,-21204.43,0.000217,2]
[338449564,1726644645316,-151.0,0.000217,2]
[338449565,1726644645325,-188.942496,0.000217,2]
[338449566,1726644645335,-188.942496,0.000217,2]
[338449567,1726644645344,-185.979843,0.000217,2]
[338449568,1726644645354,-185.979843,0.000217,2]
[338449569,1726644645363,-167.683118,0.000217,2]
[338449570,1726644645372,-167.683118,0.000217,2]
[338449571,1726644645382,-152.08646601,0.000218,2]
[338449572,1726644645392,-82451.47213216,0.000219,2]
[338449573,1726644645401,-500.0,0.00021917,2]
[338449574,1726644645411,-1307.61,0.00021917,2]
[338449575,1726644645420,-838.57,0.00021917,2]
[338449576,1726644645430,-518.31,0.00021917,2]
[338449577,1726644645439,-500.0,0.00021917,2]
[338449578,1726644645449,-2256.24,0.00021917,2]
[338449579,1726644645458,-891.01,0.00021917,2]
[338449580,1726644645468,-500.0,0.00021917,2]
[338449581,1726644645477,-671.86,0.00021917,2]
[338449582,1726644645487,-277.363101,0.00021917,2]
[338449583,1726644645501,-277.363101,0.00021917,2]
[338449584,1726644645511,-153.153796,0.00021917,2]
[338449585,1726644645521,-151.0,0.00021917,2]
[338449586,1726644645532,-151.0,0.00021917,2]
[338449587,1726644645542,-151.0,0.00021917,2]
[338449588,1726644645552,-151.0,0.00021917,2]
[338449589,1726644645562,-1120.206833,0.00021917,2]
[338449590,1726644645572,-1120.206833,0.00021917,2]
[338449591,1726644645582,-787.645506,0.00021917,2]
[338449592,1726644645592,-787.645506,0.00021917,2]
[338449593,1726644645602,-1000.0,0.00021917,2]
[338449594,1726644645621,-166.666666,0.00021918,2]
[338449595,1726644645822,-10000.0,0.00022,2]
[338449596,1726644645832,-10000.0,0.00022,2]
[338449597,1726644645843,-10000.0,0.00022,2]
[338449598,1726644645854,-10000.0,0.00022,2]
[338449599,1726644645865,-1000.0,0.00022,2]
[338449600,1726644645877,-500.19606471,0.00022,2]
[338449601,1726644645887,-205.875145,0.00022,7]
[338449602,1726644645898,-205.875145,0.00022,7]
[338449603,1726644645908,-500.0,0.00022191,2]
[338449605,1726644645918,-1307.61,0.00022191,2]
[338449606,1726644645930,-838.57,0.00022191,2]
[338449607,1726644645941,-518.31,0.00022191,2]
[338449608,1726644645952,-500.0,0.00022191,2]
[338449609,1726644645964,-2256.24,0.00022191,2]
[338449610,1726644645974,-891.01,0.00022191,2]
[338449611,1726644645984,-500.0,0.00022191,2]
[338449612,1726644645995,-671.86,0.00022191,2]
[338449613,1726644646005,-151.0,0.00022191,7]
[338449614,1726644646015,-188.942496,0.00022191,7]
[338449615,1726644646026,-188.942496,0.00022191,7]
[338449616,1726644646035,-185.979843,0.00022191,7]
[338449617,1726644646047,-185.979843,0.00022191,7]
[338449618,1726644646058,-167.683118,0.00022191,7]
[338449619,1726644646068,-167.683118,0.00022191,7]
[338449620,1726644646079,-5000.0,0.00022229,2]
[338449621,1726644646090,-5000.0,0.00022229,2]
[338449622,1726644646099,-1220.18592794,0.00022423,2]
[338449623,1726644646111,-166.666666,0.00022431,2]
[338449624,1726644646122,-166.39511998,0.00022465,2]
[338449625,1726644646132,-1307.61,0.00022465,2]
[338449626,1726644646141,-838.57,0.00022465,2]
[338449627,1726644646151,-518.31,0.00022465,2]
[338449628,1726644646161,-500.0,0.00022465,2]
[338449629,1726644646177,-2256.24,0.00022465,2]
[338449630,1726644646189,-891.01,0.00022465,2]
[338449631,1726644646198,-500.0,0.00022465,2]
[338449632,1726644646209,-671.86,0.00022465,2]
[338449633,1726644646219,-277.363101,0.00022465,7]
[338449634,1726644646230,-277.363101,0.00022465,7]
[338449635,1726644646241,-205.875145,0.00022465,7]
[338449636,1726644646251,-205.875145,0.00022465,7]
[338449637,1726644646261,-151.0,0.00022465,7]
[338449638,1726644646271,-262.264992,0.00022465,7]
[338449639,1726644646281,-151.0,0.00022465,7]
[338449640,1726644646290,-151.0,0.00022465,7]
[338449641,1726644646301,-151.0,0.00022465,7]
[338449642,1726644646312,-787.645506,0.00022465,7]
[338449643,1726644646323,-787.645506,0.00022465,7]
[338449644,1726644646334,-151.0,0.00022465,7]
[338449645,1726644646344,-151.0,0.00022465,7]
[338449646,1726644646355,-178.345866,0.00022465,7]
[338449647,1726644646367,-178.345866,0.00022465,7]
[338449648,1726644646379,-160.86528,0.00022465,7]
[338449649,1726644646390,-160.86528,0.00022465,7]
[338449650,1726644646400,-292.651344,0.00022465,7]
[338449651,1726644646411,-823.0,0.00022507,2]
[338449652,1726644646422,-500.32024169,0.00022546,2]
[338449653,1726644646433,-150.0,0.00022621,2]
[338449654,1726644646443,-524.0,0.00022621,2]
[338449655,1726644646453,-1216.0,0.00022621,2]
[338449656,1726644646464,-1307.61,0.00022739,2]
[338449657,1726644646474,-838.57,0.00022739,2]
[338449658,1726644646484,-518.31,0.00022739,2]
[338449659,1726644646499,-500.0,0.00022739,2]
[338449660,1726644646509,-2256.24,0.00022739,2]
[338449661,1726644646519,-891.01,0.00022739,2]
[338449662,1726644646529,-500.0,0.00022739,2]
[338449663,1726644646540,-671.86,0.00022739,2]
[338449664,1726644646550,-277.363101,0.00022739,7]
[338449665,1726644646561,-15.7909124,0.00022739,7]
[338449666,1726644647949,500.0,0.00024,120]
[338449667,1726644648003,500.0,0.00024,120]
[338449668,1726644648197,-261.5721976,0.00022739,7]
[338449669,1726644648207,-1120.206833,0.00022739,7]
[338449670,1726644648217,-1120.206833,0.00022739,7]
[338449671,1726644648228,-171.354462,0.00022739,7]
[338449672,1726644648239,-171.354462,0.00022739,7]
[338449673,1726644648252,-151.0,0.00022739,7]
[338449674,1726644648263,-151.0,0.00022739,7]
[338449675,1726644648273,-346.681576,0.00022739,7]
[338449676,1726644648282,-346.681576,0.00022739,7]
[338449677,1726644648293,-151.0,0.00022739,2]
[338449678,1726644648303,-882.88555271,0.00022846,2]
[338449679,1726644648312,-267256.63,0.000229,14]
[338449680,1726644648323,-205.875145,0.000229,7]
[338449681,1726644648332,-151.0,0.000229,7]
[338449682,1726644648343,-205.87514719,0.000229,7]
[338449683,1726644648353,-151.0,0.000229,7]
[338449684,1726644648363,-188.942496,0.000229,7]
[338449685,1726644648375,-188.942496,0.000229,7]
[338449686,1726644648384,-185.979843,0.000229,7]
[338449687,1726644648394,-185.979843,0.000229,7]
[338449688,1726644648403,-151.0,0.000229,7]
[338449689,1726644648413,-151.0,0.000229,7]
[338449690,1726644648422,-787.645506,0.000229,7]
[338449691,1726644648431,-787.645506,0.000229,7]
[338449692,1726644648440,-167.683118,0.000229,7]
[338449693,1726644648450,-167.683118,0.000229,7]
[338449694,1726644648459,-151.0,0.000229,7]
[338449695,1726644648468,-151.0,0.000229,7]
[338449696,1726644648477,-241.362484,0.000229,7]
[338449697,1726644648488,-151.0,0.000229,7]
[338449698,1726644648500,-151.0,0.000229,7]
[338449699,1726644648510,-151.0,0.000229,7]
[338449700,1726644648520,-500.0,0.00022901,2]
[338449701,1726644648531,-166.666666,0.00022944,2]
[338449702,1726644648540,-1000.0,0.00023,2]
[338449703,1726644648549,-3000.0,0.00023,2]
[338449704,1726644648559,-500.0,0.00023,30]
[338449705,1726644648571,-500.0,0.00023,30]
[338449706,1726644648581,-512.30283337,0.00023,30]
[338449707,1726644648591,-513.87183106,0.00023,30]
[338449708,1726644648600,-500.0,0.00023,30]
[338449709,1726644648612,-500.0,0.00023,30]
[338449710,1726644648623,-500.0,0.00023,30]
[338449711,1726644648633,-500.0,0.00023,30]
[338449712,1726644648643,-500.0,0.00023,30]
[338449713,1726644648654,-500.0,0.00023,30]
[338449714,1726644648665,-500.0,0.00023,30]
[338449715,1726644648677,-500.0,0.00023,30]
[338449716,1726644648686,-500.0,0.00023,30]
[338449717,1726644648696,-740.38181973,0.00023,30]
[338449718,1726644648706,-500.0,0.00023,30]
[338449719,1726644648716,-500.0,0.00023,30]
[338449720,1726644648726,-766.77639227,0.00023,30]
[338449721,1726644648736,-2873.09,0.00023,10]
[338449722,1726644648746,-1000.0,0.00023,23]
[338449723,1726644648758,-151.0,0.00023,7]
[338449724,1726644648767,-2500.0,0.00023,3]
[338449725,1726644648777,-151.0,0.00023,7]
[338449726,1726644648788,-151.0,0.00023,7]
[338449727,1726644648799,-178.345866,0.00023,7]
[338449728,1726644648809,-178.345866,0.00023,7]
[338449729,1726644648819,-160.86528,0.00023,7]
[338449730,1726644648830,-160.86528,0.00023,7]
[338449731,1726644648840,-158.0,0.00023,2]
[338449732,1726644648851,-200.0,0.00023,2]
[338449733,1726644648862,-306.94859856,0.00023,2]
[338449734,1726644648872,-1307.61,0.00023013,2]
[338449735,1726644648882,-838.57,0.00023013,2]
[338449736,1726644648891,-518.31,0.00023013,2]
[338449737,1726644648900,-500.0,0.00023013,2]
[338449738,1726644648910,-2256.24,0.00023013,2]
[338449739,1726644648920,-891.01,0.00023013,2]
[338449740,1726644648929,-500.0,0.00023013,2]
[338449741,1726644648939,-671.86,0.00023013,2]
[338449742,1726644648949,-1120.206833,0.00023013,7]
[338449743,1726644648958,-1120.206833,0.00023013,7]
[338449744,1726644648968,-683.45604583,0.00023146,2]
[338449745,1726644648979,-1200.85,0.000232,7]
[338449746,1726644648989,-1220.18592794,0.00023266,2]
[338449747,1726644648999,-1307.61,0.00023287,2]
[338449748,1726644649009,-838.57,0.00023287,2]
[338449749,1726644649020,-518.31,0.00023287,2]
[338449750,1726644649030,-500.0,0.00023287,2]
[338449751,1726644649039,-2256.24,0.00023287,2]
[338449752,1726644649049,-891.01,0.00023287,2]
[338449753,1726644649058,-500.0,0.00023287,2]
[338449754,1726644649068,-671.86,0.00023287,2]
[338449755,1726644649078,-171.354462,0.00023287,7]
[338449756,1726644649087,-171.354462,0.00023287,7]
[338449757,1726644649097,-151.0,0.00023287,7]
[338449758,1726644649108,-151.0,0.00023287,7]
[338449759,1726644649117,-1000.0,0.00023287,2]
[338449760,1726644649126,-159.66411,0.00023288,2]
[338449761,1726644649136,-4030.85,0.000233,14]
[338449762,1726644649146,-1500.0,0.00023412,2]
[338449763,1726644649155,-1500.0,0.00023412,2]
[338449764,1726644649166,-1500.0,0.00023412,2]
[338449765,1726644649176,-166.666666,0.00023456,2]
[338449766,1726644649185,-43815.02,0.000235,14]
[338449767,1726644649195,-21204.43,0.000235,14]
[338449768,1726644649204,-151.0,0.000235,7]
[338449769,1726644649213,-151.0,0.000235,7]
[338449770,1726644649224,-188.942496,0.000235,7]
[338449771,1726644649233,-188.942496,0.000235,7]
[338449772,1726644649242,-185.979843,0.000235,7]
[338449773,1726644649252,-185.979843,0.000235,7]
[338449774,1726644649262,-167.683118,0.000235,7]
[338449775,1726644649272,-167.683118,0.000235,7]
[338449776,1726644649282,-346.681576,0.000235,7]
[338449777,1726644649292,-346.681576,0.000235,7]
[338449778,1726644649302,-151.645653,0.000235,2]
[338449779,1726644649312,-1307.61,0.00023561,2]
[338449780,1726644649322,-838.57,0.00023561,2]
[338449781,1726644649332,-518.31,0.00023561,2]
[338449782,1726644649342,-559.02566637,0.00023561,2]
[338449783,1726644649353,-2256.24,0.00023561,2]
[338449784,1726644649362,-891.01,0.00023561,2]
[338449785,1726644649373,-526.58842327,0.00023561,2]
[338449786,1726644649382,-671.86,0.00023561,2]
[338449787,1726644649392,-151.0,0.00023561,7]
[338449788,1726644649401,-151.0,0.00023561,7]
[338449789,1726644649411,-787.645506,0.00023561,7]
[338449790,1726644649420,-787.645506,0.00023561,7]
[338449791,1726644649431,-409.5959062,0.00023562,2]
[338449792,1726644649442,-1000.0,0.00023573,2]
[338449793,1726644649452,-1293.05307909,0.00023573,2]
[338449794,1726644649462,-1307.61,0.00023835,2]
[338449795,1726644649472,-838.57,0.00023835,2]
[338449796,1726644649482,-518.31,0.00023835,2]
[338449797,1726644649496,-2256.24,0.00023835,2]
[338449798,1726644649506,-891.01,0.00023835,2]
[338449799,1726644649517,-671.86,0.00023835,2]
[338449800,1726644649526,-153.0,0.00023906,2]
[338449801,1726644649535,-166.666666,0.00023969,2]
[338449802,1726644649545,-1000.0,0.00024,2]
[338449803,1726644649555,-3000.0,0.00024,5]
[338449804,1726644649564,-285.31513172,0.00024,30]
[338449805,1726644649573,-500.0,0.00024,2]
[338449806,1726644649583,-500.0,0.00024,30]
[338449807,1726644649592,-500.0,0.00024,30]
[338449808,1726644649601,-500.0,0.00024,30]
[338449809,1726644649611,-500.0,0.00024,30]
[338449810,1726644649620,-500.0,0.00024,30]
[338449811,1726644649630,-500.0,0.00024,30]
[338449812,1726644649639,-500.0,0.00024,30]
[338449813,1726644649649,-500.0,0.00024,30]
[338449814,1726644649659,-500.0,0.00024,30]
[338449815,1726644649668,-500.0,0.00024,30]
[338449816,1726644649678,-500.0,0.00024,30]
[338449817,1726644649687,-500.0,0.00024,30]
[338449818,1726644649696,-500.0,0.00024,30]
[338449819,1726644649706,-500.0,0.00024,30]
[338449820,1726644649715,-500.0,0.00024,30]
[338449821,1726644649724,-500.0,0.00024,30]
[338449822,1726644649734,-500.0,0.00024,30]
[338449823,1726644649744,-500.0,0.00024,30]
[338449824,1726644649753,-500.0,0.00024,30]
[338449825,1726644649763,-500.0,0.00024,30]
[338449826,1726644649772,-500.0,0.00024,30]
[338449827,1726644649781,-320.93194533,0.00024,5]
[338449828,1726644649790,-3578.27779483,0.00024,30]
[338449829,1726644649800,-198.95,0.00024,2]
[338449830,1726644649810,-500.0,0.00024,14]
[338449831,1726644649819,-500.0,0.00024,5]
[338449832,1726644649830,-1043.4,0.00024,2]
[338449833,1726644649840,-500.0,0.00024,5]
[338449834,1726644649849,-500.0,0.00024,5]
[338449835,1726644649859,-500.0,0.00024,5]
[338449836,1726644649868,-500.0,0.00024,5]
[338449837,1726644649878,-500.0,0.00024,5]
[338449838,1726644649887,-500.0,0.00024,5]
[338449839,1726644649898,-270.78,0.00024,5]
[338449840,1726644649907,-500.0,0.00024,30]
[338449841,1726644649916,-500.0,0.00024,7]
[338449842,1726644649926,-500.0,0.00024,7]
[338449843,1726644649937,-247.6,0.00024,7]
[338449844,1726644649946,-1333.34,0.00024,2]
[338449845,1726644649956,-309.0,0.00024,2]
[338449846,1726644649970,-500.0,0.00024,10]
[338449847,1726644649980,-500.0,0.00024,30]
[338449848,1726644649990,-538.39,0.00024,30]
[338449849,1726644649999,-500.0,0.00024,2]
[338449850,1726644650009,-500.0,0.00024,20]
[338449851,1726644650019,-151.0,0.00024,7]
[338449852,1726644650028,-500.0,0.00024,30]
[338449853,1726644650038,-978.84,0.00024,7]
[338449854,1726644650047,-151.0,0.00024,7]
[338449855,1726644650057,-188.942496,0.00024,7]
[338449856,1726644650067,-188.942496,0.00024,7]
[338449857,1726644650076,-185.979843,0.00024,7]
[338449858,1726644650086,-185.979843,0.00024,7]
[338449859,1726644650096,-151.0,0.00024,7]
[338449860,1726644650105,-1120.206833,0.00024,7]
[338449861,1726644650114,-1120.206833,0.00024,7]
[338449862,1726644650126,-1830.33,0.00024,2]
[338449863,1726644650136,-546.74,0.00024,60]
[338449864,1726644650145,-1000.0,0.00024,5]
[338449865,1726644650155,-731.03,0.00024,30]
[338449866,1726644650165,-1783.01,0.00024,30]
[338449867,1726644650175,-930.6,0.00024,20]
[338449868,1726644650184,-302.42545213,0.00024,2]
[338449869,1726644650193,-1683.57,0.00024,7]
[338449870,1726644650203,-167.683118,0.00024,7]
[338449871,1726644650213,-151.0,0.00024,7]
[338449872,1726644650223,-9486.04,0.00024,21]
[338449873,1726644650233,-151.0,0.00024,7]
[338449874,1726644650242,-178.345866,0.00024,7]
[338449875,1726644650252,-178.345866,0.00024,7]
[338449876,1726644650261,-167.683118,0.00024,7]
[338449877,1726644650272,-500.0,0.00024,10]
[338449878,1726644650281,-160.86528,0.00024,7]
[338449879,1726644650291,-160.86528,0.00024,7]
[338449880,1726644650300,-2301.74,0.00024,30]
[338449881,1726644650310,-302.45563732,0.00024,2]
[338449882,1726644650320,-655.28,0.00024,2]
[338449883,1726644650331,-500.0,0.00024,7]
[338449884,1726644650341,-1351.31,0.00024,2]
[338449885,1726644650353,-500.0,0.00024,2]
[338449886,1726644650363,-500.0,0.00024,2]
[338449887,1726644650375,-500.0,0.00024,2]
[338449888,1726644650386,-79299.65,0.00024,18]
[338449889,1726644650396,-500.0,0.00024,2]
[338449890,1726644650407,-160.0,0.00024013,3]
[338449891,1726644650418,-500.0,0.00024106,2]
[338449892,1726644650429,-221.73824889,0.00024106,2]
[338449893,1726644650440,-501.44984943,0.00024106,2]
[338449894,1726644650451,-549.75022413,0.00024106,2]
[338449895,1726644650461,-1307.61,0.00024109,2]
[338449896,1726644650473,-838.57,0.00024109,2]
[338449897,1726644650483,-518.31,0.00024109,2]
[338449898,1726644650497,-2256.24,0.00024109,2]
[338449899,1726644650507,-891.01,0.00024109,2]
[338449900,1726644650518,-671.86,0.00024109,2]
[338449901,1726644650529,-151.0,0.00024109,7]
[338449902,1726644650543,-292.892318,0.00024109,7]
[338449903,1726644650553,-787.645506,0.00024109,7]
[338449904,1726644650564,-787.645506,0.00024109,7]
[338449905,1726644650576,-1220.18592794,0.00024109,2]
[338449906,1726644650588,-158.0,0.00024164,2]
[338449907,1726644650598,-610.0,0.000242,120]
[338449908,1726644650608,-302.42545213,0.0002424,2]
[338449909,1726644650618,-302.45563732,0.0002424,2]
[338449910,1726644650629,-1441.30764285,0.00024272,3]
[338449911,1726644650640,-500.26287746,0.00024273,2]
[338449912,1726644650650,-553.81802757,0.00024273,2]
[338449913,1726644650659,-500.0,0.00024273,2]
[338449914,1726644650670,-500.0,0.00024273,2]
[338449915,1726644650681,-500.0,0.00024273,120]
[338449916,1726644650692,-631.13,0.00024273,120]
[338449917,1726644650702,-500.0,0.00024273,120]
[338449918,1726644650713,-500.0,0.00024273,120]
[338449919,1726644650724,-500.0,0.00024273,120]
[338449920,1726644650735,-500.0,0.00024273,120]
[338449921,1726644650745,-500.0,0.00024273,120]
[338449922,1726644650756,-547.8,0.00024273,120]
[338449923,1726644650766,-500.0,0.00024273,120]
[338449924,1726644650776,-500.0,0.00024273,120]
[338449925,1726644650787,-560.7,0.00024273,120]
[338449926,1726644650797,-501.58346017,0.00024273,120]
[338449927,1726644650807,-500.0,0.00024273,120]
[338449928,1726644650818,-613.0,0.00024273,120]
[338449929,1726644650829,-500.0,0.00024273,120]
[338449930,1726644650840,-1326.55,0.00024273,120]
[338449931,1726644650851,-1982.38,0.00024273,120]
[338449932,1726644650861,-582.14499176,0.00024273,120]
[338449933,1726644650872,-500.0,0.00024273,120]
[338449934,1726644650883,-500.0,0.00024273,120]
[338449935,1726644650894,-500.0,0.00024273,120]
[338449936,1726644650904,-500.0,0.00024273,120]
[338449937,1726644650914,-500.0,0.00024273,120]
[338449938,1726644650925,-505.49503684,0.00024273,120]
[338449939,1726644650936,-568.68349003,0.00024273,120]
[338449940,1726644650947,-500.0,0.00024273,120]
[338449941,1726644650957,-2905.9,0.00024273,120]
[338449942,1726644650967,-500.0,0.00024273,120]
[338449943,1726644650977,-500.0,0.00024273,120]
[338449944,1726644650986,-500.0,0.00024273,120]
[338449945,1726644651134,-500.0,0.00024273,120]
[338449946,1726644651154,-939.51,0.00024273,120]
[338449947,1726644651166,-500.0,0.00024273,120]
[338449948,1726644651177,-500.0,0.00024273,120]
[338449949,1726644651187,-500.0,0.00024273,120]
[338449950,1726644651197,-500.0,0.00024273,120]
[338449951,1726644651208,-500.0,0.00024273,120]
[338449952,1726644651217,-500.0,0.00024273,120]
[338449953,1726644651227,-500.0,0.00024273,120]
[338449954,1726644651237,-533.71,0.00024273,120]
[338449955,1726644651246,-521.67,0.00024273,120]
[338449956,1726644651257,-1818.63,0.00024273,120]
[338449957,1726644651267,-500.0,0.00024273,120]
[338449958,1726644651276,-500.0,0.00024273,120]
[338449959,1726644651286,-500.0,0.00024273,120]
[338449960,1726644651297,-178.69640053,0.00024273,120]
[338449961,1726644651308,-500.0,0.00024273,120]
[338449962,1726644651318,-1263.69,0.00024273,120]
[338449963,1726644651331,-500.0,0.00024273,120]
[338449964,1726644651343,-611.81,0.00024273,120]
[338449965,1726644651353,-500.0,0.00024273,120]
[338449966,1726644651363,-500.0,0.00024273,120]
[338449967,1726644651373,-521.09,0.00024273,120]
[338449968,1726644651382,-500.0,0.00024273,120]
[338449969,1726644651391,-590.28,0.00024273,120]
[338449970,1726644651400,-543.53,0.00024273,120]
[338449971,1726644651410,-500.0,0.00024273,120]
[338449972,1726644651419,-500.0,0.00024273,120]
[338449973,1726644651428,-500.0,0.00024273,120]
[338449974,1726644651438,-500.0,0.00024273,120]
[338449975,1726644651447,-500.0,0.00024273,120]
[338449976,1726644651457,-496.18891021,0.00024273,120]
[338449977,1726644651467,-500.0,0.00024273,120]
[338449978,1726644651476,-500.0,0.00024273,120]
[338449979,1726644651486,-500.0,0.00024273,120]
[338449980,1726644651500,-500.0,0.00024273,120]
[338449981,1726644651509,-500.0,0.00024273,120]
[338449982,1726644651518,-574.68,0.00024273,120]
[338449983,1726644651527,-500.0,0.00024273,120]
[338449984,1726644651537,-500.0,0.00024273,120]
[338449985,1726644651546,-500.0,0.00024273,120]
[338449986,1726644651555,-500.0,0.00024273,120]
[338449987,1726644651565,-1567.22,0.00024273,120]
[338449988,1726644651575,-857.26,0.00024273,120]
[338449989,1726644651585,-500.0,0.00024273,120]
[338449990,1726644651595,-500.0,0.00024273,120]
[338449991,1726644651604,-848.27,0.00024273,120]
[338449992,1726644651613,-586.84,0.00024273,120]
[338449993,1726644651623,-500.0,0.00024273,120]
[338449994,1726644651633,-500.0,0.00024273,120]
[338449995,1726644651642,-505.23,0.00024273,120]
[338449996,1726644651652,-2622.42,0.00024273,120]
[338449997,1726644651661,-500.0,0.00024273,120]
[338449998,1726644651670,-500.0,0.00024273,120]
[338449999,1726644651680,-500.0,0.00024273,120]
[338450000,1726644651689,-500.0,0.00024273,120]
[338450001,1726644651698,-500.0,0.00024273,120]
[338450002,1726644651707,-500.0,0.00024273,14]
[338450003,1726644651716,-1747.51,0.00024273,120]
[338450004,1726644651726,-1259.4,0.00024273,120]
[338450005,1726644651734,-521.47033533,0.00024273,120]
[338450006,1726644651744,-771.53,0.00024273,120]
[338450007,1726644651753,-500.0,0.00024273,120]
[338450008,1726644651763,-500.0,0.00024273,120]
[338450009,1726644651773,-589.2542413,0.00024273,120]
[338450010,1726644651782,-502.11732115,0.00024273,5]
[338450011,1726644651791,-500.0,0.00024273,120]
[338450012,1726644651800,-741.79,0.00024273,120]